Cogmind - Beta 16 @@@ ROGUE MODE // 2025.11.20 @ 23:56:28 Player: sweetandcool Result: Self-destructed Performance ------------- Evolutions (3) 1500 Regions Visited (7) 1400 Robots Destroyed (100) 500 Value Destroyed (3773) 3773 Prototype IDs (37) 740 Alien Tech Used (0) 0 Bonus (1577) 1577 TOTAL SCORE: 9490 Bonus ------- High Alert Combat Kills 577 Entered Garrisons 200 Used RIF Installer 500 Aligned with FarCom 300 Cogmind --------- Core Integrity 399/700 Matter 103/300 Energy 10/900 System Corruption 3% Temperature Cool (2) Movement Hovering (56) Location -7/Factory Parts ------- > --- POWER (1) -------- Hybrid Fission Core > --- PROPULSION (3) --- Gravmag System Gravmag System > --- UTILITY (7) ------ Advanced Weight Redist. System System Shield System Shield Relay Coupler [Grunt] (18) Relay Coupler [Sentry] (7) > --- WEAPON (2) ------- Gatling Laser > --- INVENTORY (5) ---- Micro Nuclear Core Improved Salvage Targeting Computer Cloak of Protection Relay Coupler [Hunter] (18) Improved Datajack Peak State ------------ > --- POWER ------------ Light Nuclear Core > --- PROPULSION ------- Linear Gravjet Linear Gravjet Linear Gravjet > --- UTILITY ---------- Large Storage Unit Weight Redist. System Improved Core Shielding System Shield System Shield Relay Coupler [NC] Relay Coupler [Grunt] > --- WEAPON ----------- Gauss Rifle Katana > --- INVENTORY -------- Micro Nuclear Core Hybrid Fission Core Linear Gravjet Improved VTOL Module Nuclear Pulse Thruster Transmission Jammer Advanced ECM Suite Cloaking Device Cloak of Protection Relay Coupler [Duelist] Relay Coupler [Sentry] Relay Coupler [Sentry] Relay Coupler [Hunter] Heavy Ion Cannon [Rating: 52] Favorites ----------- Power Light Nuclear Core Engine Improved Ion Engine Power Core Light Nuclear Core Propulsion Light Treads Treads Light Treads Hover Unit Linear Gravjet Flight Unit Improved VTOL Module Utility Large Storage Unit Device Improved Heat Sink Storage Large Storage Unit Hackware System Shield Protection Light Armor Plating Weapon Katana Energy Gun Medium Laser Energy Cannon Heavy Ion Cannon Ballistic Gun Improved Assault Rifle Ballistic Cannon Gauss Cannon Launcher Grenade Launcher Special Weapon Remote Datajack Slashing Weapon Katana Special Melee Weapon Datajack Build | -11 -10 -10 -10 -9 -8 -8 -7 ------- Run | Yrd Mat Min Exi Min Mat Gar Fac Slots Evolved 6 | . . . . . 4 . 2 Power . | . . . . . . . . Propulsion 1 | . . . . . . . 1 Utility 5 | . . . . . 4 . 1 Weapon . | . . . . . . . . Parts Attached 87 | 7 11 4 . . 21 14 30 Power 11 | 1 2 1 . . 2 3 2 Engine 5 | 1 2 1 . . 1 . . Core 6 | . . . . . 1 3 2 Reactor . | . . . . . . . . Propulsion 24 | 2 2 2 . . 4 3 11 Treads 14 | 2 2 2 . . 4 3 1 Leg . | . . . . . . . . Wheel . | . . . . . . . . Hover 8 | . . . . . . . 8 Flight 2 | . . . . . . . 2 Utility 30 | 2 4 1 . . 9 5 9 Device 12 | 1 1 . . . 4 3 3 Storage 4 | 1 2 . . . 1 . . Processor . | . . . . . . . . Hackware 6 | . . . . . 1 . 5 Protection 8 | . 1 1 . . 3 2 1 Artifact . | . . . . . . . . Weapon 22 | 2 3 . . . 6 3 8 Energy Gun 5 | 1 1 . . . . 1 2 Energy Cannon 1 | . . . . . . . 1 Ballistic Gun 6 | 1 1 . . . 3 1 . Ballistic Cannon 1 | . . . . . . . 1 Launcher 5 | . 1 . . . 1 1 2 Special Weapon 1 | . . . . . . . 1 Impact Weapon . | . . . . . . . . Slashing Weapon 1 | . . . . . 1 . . Piercing Weapon . | . . . . . . . . Special Melee Weapon 2 | . . . . . 1 . 1 Unidentified Prototypes 6 | . . . . . 1 1 4 Parts Lost 38 | . 3 . . . 5 12 18 Power 4 | . 1 . . . . 2 1 Propulsion 12 | . . . . . . 4 8 Utility 12 | . . . . . 3 4 5 Weapon 10 | . 2 . . . 2 2 4 Highest Loss Streak 6 | . 3 . . . 2 6 6 To Critical Strikes . | . . . . . . . . Average Backups 12 | 1 7 13 15 15 14 12 14 Power 1 | . 1 2 2 2 2 1 1 Propulsion 2 | . . 2 3 3 3 2 3 Utility 4 | . 1 4 5 6 3 3 7 Weapon 3 | . 3 4 4 4 4 4 1 Tool/Special . | . . . . . . . . Unused Backups 17 | . . . . . 4 1 12 Power 4 | . . . . . 1 1 2 Propulsion 1 | . . . . . . . 1 Utility 7 | . . . . . . . 7 Weapon 5 | . . . . . 3 . 2 Tool/Special . | . . . . . . . . Average Slot Usage (%) 92 | . 90 100 100 100 93 90 91 Engine 4 | . 12 14 14 14 6 . . Core 5 | . . . . . 2 8 6 Treads 17 | . 28 28 28 28 18 17 3 Hover 3 | . . . . . . . 16 Device 14 | . 6 . . . 21 22 9 Storage 9 | . 14 14 14 14 9 9 7 Hackware 10 | . . . . . 4 9 29 Protection 8 | . 7 14 14 14 13 7 3 Energy Gun 1 | . 11 . . . . . . Ballistic Gun 6 | . 6 14 14 14 11 4 1 Launcher 4 | . 2 14 14 14 2 3 . Slashing Weapon 3 | . . . . . 3 6 2 Peak Build Rating 52 | 7 8 9 10 10 31 34 52 Average Rating 26 | 5 6 8 9 10 25 29 44 On Entrance 13 | . 7 8 9 10 10 27 33 Avg Prop Armor Cover (%) 7 | . . . . . . . 7 Naked Turns . | . . . . . . . . Heaviest Build 54 | 14 33 35 35 35 54 52 45 Greatest Support 46 | 40 40 40 40 40 40 40 46 Greatest Overweight (x) 2 | . . . . . 1 1 2 Average Overweight (x) . | . . . . . . . . Largest Inventory Capacity 15 | 8 15 15 15 15 15 15 15 Average Capacity 14 | 7 10 15 15 15 15 15 14 Most Carried 15 | 2 11 15 15 15 15 15 15 Average Carried 13 | 1 7 14 15 15 14 12 14 Final Capacity 15 | 8 15 15 15 15 15 15 5 Final Carried 15 | 2 10 15 15 15 15 15 5 Class Distribution -------------------- 63% | Scavenger-Mutant 15% | Bothacker-Mutant 14% | Mutant 4% | Hacker-Mutant Dominant Class ---------------- Mutant | -10/Materials Scavenger-Mutant | -10/Mines Scavenger-Mutant | -10/Exiles Scavenger-Mutant | -9/Mines Scavenger-Mutant | -8/Materials Scavenger-Mutant | -8/Garrison Bothacker-Mutant | -7/Factory Resources | -11 -10 -10 -10 -9 -8 -8 -7 ----------- Run | Yrd Mat Min Exi Min Mat Gar Fac Matter Collected 2100 | 273 217 72 . . 584 628 326 Remotely 143 | 61 82 . . . . . . Salvage Created 4293 | 113 770 104 . . 762 1307 1237 Parts 209 | 4 42 7 . . 44 50 62 Haulers Intercepted 10 | . 2 . . . 4 . 4 Recyclers Shooed 6 | . 5 . . . . . 1 Parts Field Recycled . | . . . . . . . . Retrieved Matter . | . . . . . . . . Parts Self-Destructed . | . . . . . . . . Prevented . | . . . . . . . . Parts Restored . | . . . . . . . . Kills | -11 -10 -10 -10 -9 -8 -8 -7 ------- Run | Yrd Mat Min Exi Min Mat Gar Fac Combat Hostiles Destroyed 71 | . 16 4 . . 11 28 12 Melee 19 | . . . . . 2 12 5 Guns 29 | . 16 1 . . 6 5 1 Cannons 6 | . . . . . . . 6 AOE 17 | . . 3 . . 3 11 . Classes Destroyed 15 | 2 4 . . . 4 4 1 Worker 3 | . . . . . 1 . 2 Builder 1 | . . . . . 1 . . Tunneler 2 | 1 . 1 . . . . . Hauler 10 | . 2 . . . 4 . 4 Recycler 10 | 1 2 . . . 2 . 5 Operator 3 | . 1 . . . 1 . 1 Swarmer 14 | . 6 . . . 4 4 . Grunt 38 | . 10 4 . . 3 17 4 Duelist 1 | . . . . . . 1 . Protector 1 | . . . . . . 1 . Sentry 7 | . . . . . 3 1 3 Demolisher 1 | . . . . . . 1 . Hunter 2 | . . . . . 1 . 1 Programmer 6 | . . . . . . 3 3 Heavy 1 | . . . . . . . 1 Best Kill Streak 7 | 1 4 3 . . 6 7 5 Combat Bots Only 7 | . 3 2 . . 4 7 2 Max Kills in Single Turn 2 | 1 2 1 . . 2 2 1 Gunslinging . | . . . . . . . . Exploded 2 | . . 1 . . 2 2 . Melee 1 | . . . . . 1 1 1 Uniques/NPCs Destroyed . | . . . . . . . . Combat | -11 -10 -10 -10 -9 -8 -8 -7 -------- Run | Yrd Mat Min Exi Min Mat Gar Fac Hostile Shots Fired 594 | . 107 12 . . 94 158 223 Missed 168 | . 19 5 . . 30 41 73 Hits 426 | . 88 7 . . 64 117 150 Melee 5 | . . . . . . 5 . Projectile 421 | . 88 7 . . 64 112 150 AOE 1 | . . . . . . 1 . Critical Strikes 11 | . 1 1 . . 1 6 2 Damage Taken 5659 | . 904 104 . . 886 1819 1946 Core 740 | . 175 1 . . 46 217 301 Absorbed by Shields 96 | . . . . . 32 64 . Redirected to Shielding 213 | . . . . . 44 16 153 Core Remaining (%) 60 | 100 . . . 29 . 52 . Volleys Fired 281 | 3 101 10 . . 58 51 58 Largest 2 | 2 2 2 . . 2 2 2 Hottest 105 | 70 70 50 . . 46 80 105 Shots Fired 353 | 6 130 11 . . 80 62 64 Gun 261 | 6 130 4 . . 73 45 3 Cannon 57 | . . . . . . . 57 Launcher 31 | . . 7 . . 7 17 . Special 4 | . . . . . . . 4 Kinetic 199 | 3 47 4 . . 73 36 36 Thermal 110 | 3 83 . . . . . 24 Explosive 27 | . . 7 . . 7 13 . Electromagnetic 13 | . . . . . . 13 . Robot Hit Streak 21 | 5 16 1 . . 16 21 10 Robot Miss Streak 4 | . 4 2 . . 2 3 2 Penetration Max . | . . . . . . . . Secondary Targets 2 | . 1 . . . . 1 . Max Gunslinging Chain 1 | . 1 . . . . 1 . Shots Hit Robots 350 | 5 86 4 . . 67 112 76 Core Hits 174 | 3 40 10 . . 36 55 30 Critical Kills 1 | . . . . . 1 . . Critical Parts Destroyed 1 | . 1 . . . . . . Critical Strikes 22 | . 7 . . . 1 6 8 Burn 6 | . 6 . . . . . . Destroy 2 | . 1 . . . 1 . . Blast 2 | . . . . . . . 2 Sever 12 | . . . . . . 6 6 Melee Attacks 197 | . . . . . 15 125 57 Impact . | . . . . . . . . Slashing 188 | . . . . . 13 122 53 Piercing . | . . . . . . . . Sneak Attacks 22 | . . . . . 6 3 13 Combat Hostiles . | . . . . . . . . Follow-up Attacks . | . . . . . . . . Damage Inflicted 9775 | 56 1144 408 . . 1568 4031 2568 Guns 2599 | 56 1144 40 . . 768 539 52 Cannons 651 | . . . . . . . 651 Explosions 1921 | . . 368 . . 490 1063 . Melee 4586 | . . . . . 310 2429 1847 Ramming 18 | . . . . . . . 18 Kinetic 1942 | 18 383 40 . . 768 417 316 Thermal 1242 | 38 761 . . . . 56 387 Explosive 1748 | . . 368 . . 490 890 . Electromagnetic 239 | . . . . . . 239 . Impact . | . . . . . . . . Slashing 4586 | . . . . . 310 2429 1847 Piercing . | . . . . . . . . Highest Corruption 7 | . 1 1 1 1 3 7 3 Average Corruption 2 | . 1 1 1 1 2 3 3 Corruption Purged 7 | . . . . . . 7 . Corruption Blocked . | . . . . . . . . Effects 69 | . . 6 3 . 11 49 . Message Errors 17 | . . 1 1 . 4 11 . Matter Fused 21 | . . 1 2 . 3 15 . Heat Flow Errors 8 | . . 1 . . 1 6 . Energy Discharges 5 | . . 1 . . 1 3 . Parts Rejected 1 | . . . . . . 1 . Data Loss (minor) 11 | . . 1 . . 2 8 . Data Loss (major) 3 | . . 1 . . . 2 . Misfires 2 | . . . . . . 2 . Alerts 1 | . . . . . . 1 . Overload Shots . | . . . . . . . . Overflow Damage 310 | . . . . . 60 80 170 Projectiles . | . . . . . . . . Explosions 28 | . . . . . 26 2 . Melee 282 | . . . . . 34 78 170 Knockbacks . | . . . . . . . . Impact . | . . . . . . . . Kinetic . | . . . . . . . . Secondary . | . . . . . . . . Self-Inflicted Damage 115 | . . 3 . . 1 102 9 Shots 5 | . . 1 . . 1 3 . Rammed 1 | . . . . . . . 1 Targets Rammed 1 | . . . . . . . 1 Kicked . | . . . . . . . . Crushed . | . . . . . . . . Highest Temperature 321 | 40 321 203 . . 68 191 205 Average Temperature 82 | 19 93 70 . . 13 85 67 Received Heat Transfer 1810 | . 351 75 . . 290 530 564 Siege Activations . | . . . . . . . . Martial Activations . | . . . . . . . . Shielding Activations . | . . . . . . . . Robots Disrupted 1 | . . . . . . 1 . Combat Hostiles 1 | . . . . . . 1 . Robots Corrupted . | . . . . . . . . Combat Hostiles . | . . . . . . . . Parts Fried . | . . . . . . . . Impact Corruptions . | . . . . . . . . Robots Melted . | . . . . . . . . Combat Hostiles . | . . . . . . . . Parts Melted 7 | . 7 . . . . . . Heat Transferred 3382 | 111 2627 . . . . 100 544 Parts Sabotaged . | . . . . . . . . Parts Stolen . | . . . . . . . . Parts Stripped . | . . . . . . . . Power Chain Reactions 2 | . . . . . . 2 . Alert | -11 -10 -10 -10 -9 -8 -8 -7 ------- Run | Yrd Mat Min Exi Min Mat Gar Fac Maximum Alert Level 5 | . . . . . . 5 3 Low Security (%) 42 | 100 100 100 . 100 100 11 . Level 1 7 | . . . . . . 19 . Level 2 8 | . . . . . . 7 22 Level 3 29 | . . . . . . 29 77 Level 4 7 | . . . . . . 19 . Level 5 4 | . . . . . . 12 . High Security . | . . . . . . . . Max Security . | . . . . . . . . Peak Influence 1836 | 5 123 87 . . 98 1836 963 Initial 963 | . . 22 . . . 19 963 Average 511 | . 55 19 . . 26 833 765 Influence Increases 3864 | 10 439 139 . . 452 1937 887 Destroy 0b10 Robot/C 1480 | . 320 80 . . 220 540 320 Destroy 0b10 Robot/NC 185 | 10 25 5 . . 45 20 80 Destroy Leader 292 | . 64 20 . . 68 30 110 Successful Hack 119 | . 13 . . . 22 . 84 Disable Machine 30 | . . . . . . 15 15 Anti-Garrison Action 1150 | . . . . . . 1150 . Destroy Structure 278 | . 2 34 . . 22 167 53 Partial Spotted 30 | . 15 . . . . . 15 Lose Combat Pursuer 300 | . . . . . 75 15 210 Influence Decreases 3136 | 10 380 198 . . 422 131 1995 Entered New Map 921 | . . 37 . . . 11 873 Time Decay 1485 | 10 350 161 . . 372 . 592 Lost Part 370 | . 30 . . . 40 120 180 Lost Ally 60 | . . . . . 10 . 50 Purge Threat 300 | . . . . . . . 300 Squads Dispatched 18 | . 3 . . . 3 . 12 Investigation 6 | . 2 . . . 2 . 2 Extermination 2 | . . . . . . . 2 Reinforcement 10 | . 1 . . . 1 . 8 Assault . | . . . . . . . . Garrison . | . . . . . . . . Intercept . | . . . . . . . . Searches Triggered . | . . . . . . . . Construction Impeded . | . . . . . . . . Haulers Reinforced . | . . . . . . . . Active Scanning Responses . | . . . . . . . . Cargo Convoy Interrupts 1 | . . . . . . . 1 Stealth | -11 -10 -10 -10 -9 -8 -8 -7 --------- Run | Yrd Mat Min Exi Min Mat Gar Fac Distress Signals 6 | . 2 . . . . 1 3 Communications Jammed . | . . . . . . . . Distress Signals . | . . . . . . . . Times Spotted 124 | . 27 4 . . 19 34 40 Peak Tracking Total 7 | . 7 2 . . 4 7 7 Tactical Retreats 13 | . . . . . 4 1 8 Traps | -11 -10 -10 -10 -9 -8 -8 -7 ------- Run | Yrd Mat Min Exi Min Mat Gar Fac Traps Triggered 10 | . 3 . . . 3 2 2 Indirectly . | . . . . . . . . Trap Hack Attempts . | . . . . . . . . Triggered . | . . . . . . . . Disarmed . | . . . . . . . . Reprogrammed . | . . . . . . . . Reused . | . . . . . . . . Traps Extracted . | . . . . . . . . Installed . | . . . . . . . . Triggered . | . . . . . . . . Machines | -11 -10 -10 -10 -9 -8 -8 -7 ---------- Run | Yrd Mat Min Exi Min Mat Gar Fac Machines Disabled 6 | . . . . . . 5 1 Max in Single Turn 1 | . . . . . . 1 . Garrison Access 1 | . . . . . . . 1 Garrison Relay 4 | . . . . . . 4 . Machines Repaired . | . . . . . . . . Machines Dismantled . | . . . . . . . . Machines Sabotaged . | . . . . . . . . Overloaded Fab Kills . | . . . . . . . . Hacking | -11 -10 -10 -10 -9 -8 -8 -7 --------- Run | Yrd Mat Min Exi Min Mat Gar Fac Machines Accessed 35 | . 5 . 1 . 9 4 16 Terminals 28 | . 5 . . . 6 4 13 Fabricators 2 | . . . . . . . 2 Repair Stations . | . . . . . . . . Recycling Units . | . . . . . . . . Scanalyzers 2 | . . . . . 2 . . Garrison Access 2 | . . . . . 1 . 1 Total Hacks 97 | . 13 . 1 . 22 9 52 Successful 46 | . 5 . 1 . 13 1 26 Failed 51 | . 8 . . . 9 8 26 Catastrophic 16 | . 3 . . . 2 7 4 Database Lockouts . | . . . . . . . . Manual 44 | . 12 . 1 . 9 4 18 Terminals 86 | . 13 . . . 17 9 47 Fabricators 4 | . . . . . . . 4 Repair Stations . | . . . . . . . . Recycling Units . | . . . . . . . . Scanalyzers 4 | . . . . . 4 . . Garrison Access 2 | . . . . . 1 . 1 Terminal Hacks 28 | . 5 . 1 . 5 1 16 Part Schematic 3 | . 1 . . . . . 2 Robot Analysis 2 | . 1 . . . . . 1 Prototype ID Bank 5 | . 1 . . . 1 . 3 Open DSF 2 | . . . . . . . 2 Branch Access Points 1 | . 1 . . . . . . Emergency Access Points 2 | . . . . . . 1 1 Machine Index 1 | . . . . . . . 1 Fabricator Index 1 | . . . . . . . 1 Scanalyzer Index 1 | . . . . . 1 . . Alert Level 1 | . . . . . 1 . . Unreport Threat 2 | . . . . . . . 2 Locate Traps 1 | . 1 . . . . . . Hauler Manifests 2 | . . . . . 1 . 1 Zone Layout 3 | . . . . . 1 . 2 Proto ID Catalog 1 | . . . 1 . . . . Fabricator Hacks 2 | . . . . . . . 2 Load Schematic 1 | . . . . . . . 1 Build 1 | . . . . . . . 1 Repair Station Hacks . | . . . . . . . . Recycling Unit Hacks . | . . . . . . . . Scanalyzer 4 | . . . . . 4 . . Insert Component 1 | . . . . . 1 . . Analyze 1 | . . . . . 1 . . Retrieve Study 2 | . . . . . 2 . . Garrison Access Hacks 2 | . . . . . 1 . 1 Unlock Access 1 | . . . . . 1 . . Seal Access 1 | . . . . . . . 1 Unauthorized Hacks 10 | . . . . . 3 . 7 Terminals 10 | . . . . . 3 . 7 Assimilate 4 | . . . . . 1 . 3 Botnet 6 | . . . . . 2 . 4 Fabricators . | . . . . . . . . Repair Stations . | . . . . . . . . Recycling Units . | . . . . . . . . Scanalyzers . | . . . . . . . . Garrison Access . | . . . . . . . . Data Cores Recovered . | . . . . . . . . Used . | . . . . . . . . Hacking Detections 27 | . 5 . . . 7 4 11 Full Trace Events 2 | . . . . . 1 1 . Feedback Events . | . . . . . . . . Feedback Blocked . | . . . . . . . . Robot Schematics Acquired . | . . . . . . . . Robots Built 1 | . . . . . . . 1 Authchips . | . . . . . . . . Time 116 | . . . . . . . 116 Total Robot Build Rating 3 | . . . . . . . 3 Part Schematics Acquired 4 | . 1 . . . 1 . 2 Parts Built . | . . . . . . . . Authchips . | . . . . . . . . Time . | . . . . . . . . Total Part Build Rating . | . . . . . . . . Part Studies Acquired 2 | . . . . . 2 . . Parts Repaired . | . . . . . . . . Time . | . . . . . . . . Parts Recycled . | . . . . . . . . Recycled Matter . | . . . . . . . . Retrieved Matter . | . . . . . . . . Retrieved Components . | . . . . . . . . Parts Scanalyzed 1 | . . . . . 1 . . Part Schematics Acquired 1 | . . . . . 1 . . Parts Damaged . | . . . . . . . . Bothacking | -11 -10 -10 -10 -9 -8 -8 -7 ------------ Run | Yrd Mat Min Exi Min Mat Gar Fac Used RIF Installer 1 | . . . . . . 1 . Robots Hacked 5 | . . . . . 1 . 4 Non-combat 2 | . . . . . 1 . 1 Combat 3 | . . . . . . . 3 Robot Hacks Applied 5 | . . . . . 1 . 4 parse_system 3 | . . . . . 1 . 2 find_garrison 1 | . . . . . . . 1 formatsys_high 1 | . . . . . . . 1 Relay Couplers Released 17 | . . . . . . 17 . Machine Destruction 17 | . . . . . . 17 . Attached 4 | . . . . . . . 4 Fabnet Peak Effective % . | . . . . . . . . Robots Rewired . | . . . . . . . . Allies Hacked . | . . . . . . . . Hacks Repelled . | . . . . . . . . Allies | -11 -10 -10 -10 -9 -8 -8 -7 -------- Run | Yrd Mat Min Exi Min Mat Gar Fac Total Allies 4 | . . . . . 1 . 3 Largest Group 1 | . . . . . 1 . 1 Highest-Rated Group 34 | . . . . . 10 . 34 Highest-Rated Ally 34 | . . . . . 10 . 34 Total Orders 2 | . . . . . 2 . . ROAM 1 | . . . . . 1 . . FOLLOW 1 | . . . . . 1 . . Ally Attacks 8 | . . . . . . . 8 Total Damage 836 | . . . . . . . 836 Kills 8 | . . . . . . . 8 Allies Corrupted . | . . . . . . . . Allies Melted . | . . . . . . . . Intel | -11 -10 -10 -10 -9 -8 -8 -7 ------- Run | Yrd Mat Min Exi Min Mat Gar Fac Active Infowar (turns) . | . . . . . . . . Robot Analysis Total 2 | . 1 . . . . . 1 Derelict Logs Recovered 1 | . . 1 . . . . . Drone Launches . | . . . . . . . . Drone Recoveries . | . . . . . . . . Exploration | -11 -10 -10 -10 -9 -8 -8 -7 ------------- Run | Yrd Mat Min Exi Min Mat Gar Fac Turns Passed 8335 | 81 883 704 327 92 1298 3074 1876 Spaces Moved 4281 | 41 388 420 204 58 535 1314 1321 Core 4 | 4 . . . . . . . Treads 3148 | 37 388 420 204 58 535 1314 192 Legs . | . . . . . . . . Wheels . | . . . . . . . . Hover 1122 | . . . . . . . 1122 Flight 7 | . . . . . . . 7 Fastest Speed 32 | 50 160 160 160 160 160 160 32 Average Speed 151 | 149 160 160 160 160 189 191 89 Slowest Speed 240 | 160 160 160 160 160 240 240 240 Overloaded Moves . | . . . . . . . . Propulsion Burnouts . | . . . . . . . . Robots Hopped . | . . . . . . . . Potential Cave-ins 2 | . . . . . . . 2 Cave-ins Triggered . | . . . . . . . . Exploration Rate (%) 52 | 4 71 83 62 18 45 97 41 Regions Visited 7 Branch Regions 3 Pre-discovered Areas 1 | . . 1 . . . . . Known Exits Taken 2 | . 1 . . . 1 . . Unknown Exits Taken 4 | 1 . 1 1 1 . . . Scrap Searched 1 | . . 1 . . . . . Spaces Dug 31 | . . . . . 6 5 20 Terrain Destroyed 137 | . . 40 . . 27 48 22 Melee 15 | . . . . . 6 4 5 Projectile 18 | . . . . . . 1 17 AOE 104 | . . 40 . . 21 43 . Terrain Rammed . | . . . . . . . . Walls Destroyed . | . . . . . . . . Machines Disabled . | . . . . . . . . Actions | -11 -10 -10 -10 -9 -8 -8 -7 --------- Run | Yrd Mat Min Exi Min Mat Gar Fac Total 5494 | 52 524 440 205 57 721 1627 1868 Wait 521 | . 11 4 . . 59 87 360 Move 4273 | 40 387 419 203 57 534 1312 1321 Hop . | . . . . . . . . Pick Up 57 | 2 8 2 1 . 15 12 17 Fast Attach 31 | 7 1 . . . 5 6 12 Attach 36 | . 4 . . . 7 9 16 Detach 3 | . . . . . . . 3 Swap 44 | . 7 4 . . 11 15 7 Drop 46 | . 5 1 1 . 17 6 16 Fire 281 | 3 101 10 . . 58 51 58 Melee 197 | . . . . . 15 125 57 Ram 1 | . . . . . . . 1 Kick . | . . . . . . . . Crush . | . . . . . . . . Escape Stasis 4 | . . . . . . 4 . Rewire . | . . . . . . . . Trap . | . . . . . . . . Miscellaneous . | . . . . . . . . Route ------- -11/Scrapyard -10/Materials (discovered 2 exits: [*Mat] / *Min) -10/Mines -10/Exiles -9/Mines -8/Materials (discovered 3 exits: *Fac x2 / Gar) -8/Garrison (discovered 4 exits: *Fac x3 / [*Mat]) -7/Factory (discovered 1 exit: [*Low]) History --------- Turn | Location | Event 16 | -11/Scrapyard | Discovered new exit (range 15) 82 | -11/Scrapyard | Entered Materials 196 | -10/Materials | Identified exit to Mines 310 | -10/Materials | Build established: Mutant 314 | -10/Materials | Lost 3 parts (1p2w) 663 | -10/Materials | Discovered new exit (range 11) 873 | -10/Materials | Core integrity fell below 50% 965 | -10/Materials | Entered Mines 1159 | -10/Mines | Joined a pair of Derelicts in attacking an 0b10 outpost 1342 | -10/Mines | Learned location of Storage (-7) 1445 | -10/Mines | Learned 8 Materials zone layouts 1470 | -10/Mines | Build established: Scavenger-Mutant 1661 | -10/Mines | Deemed a non-threat by the Exiles lab entrance 1662 | -10/Mines | Discovered new exit (range 5) 1669 | -10/Mines | Entered Exiles 1713 | -10/Exiles | Met 8R-AWN 1737 | -10/Exiles | Met EX-HEX 1778 | -10/Exiles | Met EX-BIN 1799 | -10/Exiles | Aligned with FarCom system 1801 | -10/Exiles | Given EX-Vault access code 1837 | -10/Exiles | Opened EX-Vault 1849 | -10/Exiles | Found Cloak of Protection 1879 | -10/Exiles | Warned to stay clear of 0b10 Research branches 1924 | -10/Exiles | Met EX-DEC 1983 | -10/Exiles | Discovered new exit (range 10) 1996 | -10/Exiles | Left Exiles lab with Cloak of Protection 1996 | -10/Exiles | Entered Mines 2081 | -9/Mines | Discovered new exit (range 5) 2088 | -9/Mines | Entered Materials 2088 | -8/Materials | Evolved 4 slots: Utility x4 2089 | -8/Materials | Identified exit to Factory 2628 | -8/Materials | Discovered exit to Factory (range 10) 3382 | -8/Materials | Identified exit to Garrison 3386 | -8/Materials | Entered Garrison 3439 | -8/Garrison | Triggered checkpoint 3498 | -8/Garrison | Garrison Relay disabled 3612 | -8/Garrison | Triggered checkpoint 3708 | -8/Garrison | Discovered new exit (range 5) 4062 | -8/Garrison | Triggered checkpoint 4294 | -8/Garrison | Garrison Relay disabled 4335 | -8/Garrison | Discovered exit to Factory (range 13) 4419 | -8/Garrison | Destroyed 7 combat bots 4424 | -8/Garrison | Lost 4 parts (1p2n1u) 4660 | -8/Garrison | Triggered checkpoint 4863 | -8/Garrison | Discovered exit to Factory (range 10) 5008 | -8/Garrison | Triggered checkpoint 5056 | -8/Garrison | Garrison Relay disabled 5182 | -8/Garrison | Triggered checkpoint 5353 | -8/Garrison | Discovered exit to Factory (range 11) 5500 | -8/Garrison | Lost 6 parts (2n2u2w) 5536 | -8/Garrison | Triggered checkpoint 5559 | -8/Garrison | Garrison Relay disabled 6051 | -8/Garrison | Installed Relay Interface Framework 6460 | -8/Garrison | Entered Factory 6460 | -7/Factory | Evolved 2 slots: Propulsion x1, Utility x1 6736 | -7/Factory | Build established: Bothacker-Mutant 6783 | -7/Factory | Found Prototype Launcher 6784 | -7/Factory | Identified Rocket Array 6795 | -7/Factory | Found Rocket Array 6881 | -7/Factory | Lost 3 parts (2n1u) 7132 | -7/Factory | Fabricated D-53 Grenadier? 7179 | -7/Factory | Lost 6 parts (1p2n1u2w) 7501 | -7/Factory | Cargo convoy interrupted 8270 | -7/Factory | Discovered new exit (range 16) 8336 | -7/Factory | Self-destructed Last Messages --------------- Installing primary routines, ETC: 6. 08304_ Manufacturing Mainframe disabled. 08306_ Guardian 4a reactivates. 08307_ Guardian 4a destroyed. 08309_ Acquired 71 matter. 08310_ Acquired Gatling Laser. 08312_ Gravmag System destroyed. 08317_ P-60 Hacker destroyed. 08319_ Acquired 32 matter. 08320_ R-06 Scavenger collects Imp. Deuterium Engine. 08323_ R-06 Scavenger collects Imp. Heat Sink. 08329_ C-30 ARC bursts open, deploying its payload. 08329_ S-27 Virus unfolds itself. 08331_ R-06 Scavenger collects Corrupted Lgt. Treads. 08333_ Slammed into R-06 Scavenger. 08333_ Lrg. Storage Unit destroyed. 08333_ Linear Gravjet destroyed. 08333_ System corrupted by crushing effect (+1). 08333_ System corrupted by crushing effect (+2). 08335_ R-06 Scavenger collects Gravmag System. Map ----- +----------------------------------------------------+ | ????????????????????????????#"" """ """ # """"" | | ????????????????????????????#"" """ """ # """ | | ????????????????????????????# """ """ # | | ????????????????????????????# # """"" | | ????????????????????????????# """ """ # """"" | | ????????????????????????????# """ """ # """ | | ????????????????????????????# """ """ # | | ????????????????????????????# # | | ?????????????????????##############+#######+###### | | ???????????????????? + | | ????????????????????? # | | ???????????????????? # | | ???????????????????? # | | ??????????????????? # | | ????????????????? # | | ?????????????? ## | | ?????????????# ?########### ###### ##### | | ?????????????# ?# [ # #????# #???# | | ?????????????# ?# # #????# ##### | | ?????????????# "%?# ! # #????# | | ?????????????# ?# # #????# ##### | | ?????????????# ## """" # #???##+##### | | ?????????????+ ## """" # #???# | | ?????????????# ## """" # #???# | | ?????????????# ## s "" # #???# | | ?????????????# ## @r * # #???# """ | | ?????????????# ######+##### ##??# """"" | | ?????????????# ss s!*=! #??# """"" | | ?????????????# !=| #??# | | ?????????????# #??# """ | | ?????? #??# """"" | | ????? #??# """"" | | ?????? #??# | | ?????? #??# " | | ######?#### ######## ########### #??# " | | #????#????????# #?????????# #??# " | | """ #?????????????# #????????? #?# ! | | """ #?????????????# #????????? #?######## | | """ #????????######+##???????? | | #????????# ? ???????? ! | | """ #????????# ? ??????? < | | """ #????????# """ """ ????? | | """ #????????# """ """ #??? ] | | #????????# """ """ #??? ??? ########## | | #????????# #????????? ??????????# | | #????????# """ """ #????????????????????# | | #????????# """ """ #????????? #?????????# | | ####+###??????# ! """ """ #???????? #?????????#? | | ?# #??????#%! #??????? +??????????? | | ## T ######## *= #?????? #??????????? | +----------------------------------------------------+ Best States ------------- Heat Dissipation 87 Energy Generation 15 Energy Capacity 900 Matter Stores 300 Matter Capacity 300 Sight Range 16 Terrain Scan Density 10 Additional Mass Support 9 Base Temperature (-) 100 Armor Coverage 900 Core Shielding 30 Propulsion Shielding 66 Evasion (%) 58 Recoil Reduction 2 Defensive Hacking 20 Relay Coupler Types 3 Relay Coupler Value 70 Item Schematics ----------------- Datajack | -10/Materials | Hacked Grenade Launcher | -8/Materials | Scanalyzed Adv. Salvage Targeting Computer | -7/Factory | Hacked Adv. ECM Suite | -7/Factory | Hacked Robot Schematics ------------------ None Fabricated ------------ D-53 Grenadier | x1 | -7/Factory | Preloaded Repaired ---------- Nothing Studied --------- Datajack | -8/Materials | Hacked Lgt. Nuclear Core | -8/Materials | Hacked Alien Tech Used ----------------- None Achievements -------------- DIY Cooler Ew, Corruption Jackpot Join The Dark Side Junior Dev Mindtrick Challenges ------------ None Game ------ Seed DrainedTeleporterCompressor Manual? 0 Play Time 01:52:11 Cumulative 123.9 hours Start 2025.11.20 @ 19:54:18 End 2025.11.20 @ 23:56:28 Sessions 1 Manual Loads 0 Difficulty Rogue Special Mode None Game No. 89 Rogue 89 Adventurer 0 Explorer 0 Win Type - Total 0 Types 0/0/0/0/0/0/0/0/0/0 Lore% 33 Gallery% 49 Achievement% 35 Wizard Run 0 Options --------- Layout 0 ASCII 0 Keyboard 0 Movement Numpad Keybinds 0 Fullscreen 1 Font 18/SmallcapsGlow Map View 76x50 Zoom Use 0% Tactical HUD 1 Map Filters NONE Filters NONE Steam 1 RUN: 95517d1c-d0ef-4104-b75d-a5b7d0fe6c13